Workbook

Sheet Introduction
D2: FLUX-LM: MODEL OVERVIEW & INSTRUCTIONS | N2: HYPERLINKS TO OTHER SHEETS
A12: Last Edited
A13: 2017-01-18
A14: by Barret Kurylyk
N17: WARNING

Sheet Solver details
D1: Solver must be:
D2: (1) Turned on in Excel (see Step 1 below in figures)
D3: (2) Accessible to Visual Basic (see Step 2 below in figures)
D5: *All screen shots are from MS Excel 2013; for other versions, a simple web search of 'turning
D6: Solver on in Excel' and 'referencing Solver in Visual Basic' should yield appropriate information.
D8: Step 1 progresses from left to right in the top row of figures. Step 2 is in the bottom row.

Sheet 1 layer
A1: 1-Layer | C1: Summary of Results
C2: Optimal Darcy flux (m s-1) | D2: =D3/365/24/60/60 -> -1.199245785e-08
C3: Optimal Darcy flux (m yr-1) | D3: -0.3781941508 | E3: Enter flux in m/yr | H3: Solve macro
C4: RMSE (°C) | D4: =SQRT(AVERAGE(E10:E2109)) -> 0.01973952607 | H4: minimizes cell D4
C5: Peclet Number | D5: =ABS(D2*G12*G10/G11) -> 1.019256636
K6: To be hidden
A8: Table 1: Field Data | F8: Table 2: Input Parameters | K8: Table 3: Calculated Equation Coefficient
A9: Depth (m) | B9: Temperature (°C) | C9: Adjusted Depth (m) | D9: Calculated Temp. (°C) | E9: Error2 | F9: Parameter | G9: Value | H9: Unit | K9: Parameter | L9: Value | M9: Units | N9: Eq. # [in Kurylyk et al.]
A10: 12.494 | B10: 17.45 | C10: =IF(A10-$A$10>=0,A10-$A$10,"Past bottom boundary") -> 0 | D10: =IF(C10="Below bottom boundary",#N/A,$L$12*EXP($D$2*C10/$L$10)+$L$13) -> 17.45 | E10: =IF(ISERROR((D10-B10)^2),"",(D10-B10)^2) -> 1.262177448e-29 | F10: Total thickness (d) | G10: =INDEX(C:C,MATCH(9.99999999999999E+307,C:C)) -> 35.972 | H10: m | K10: σ1 | L10: =G11/$G$12 -> 4.232424677e-07 | M10: m2 s-1 | N10: NA
A11: 12.715 | B11: 17.48 | C11: =IF(A11-$A$10>0,A11-$A$10,"Below bottom boundary") -> 0.221 | D11: =IF(C11="Below bottom boundary",#N/A,$L$12*EXP($D$2*C11/$L$10)+$L$13) -> 17.47910547 | E11: =IF(ISERROR((D11-B11)^2),"",(D11-B11)^2) -> 8.001927181e-07 | F11: Thermal conduct. (λ) | G11: 1.77 | H11: W m-1 °C-1 | K11: a | L11: =EXP(D2*(G10/L10)) -> 0.3608630932 | M11: ="-" -> - | N11: 10
A12: 12.934 | B12: 17.5 | C12: =IF(A12-$A$10>0,A12-$A$10,"Below bottom boundary") -> 0.44 | D12: 17.5077683 | E12: =IF(ISERROR((D12-B12)^2),"",(D12-B12)^2) -> 6.034647911e-05 | F12: Heat capacity of water (cwρw) | G12: 4182000 | H12: J m-3 °C-1 | K12: C11 | L12: =(G14-G13)/(L11-1) -> -4.66253782 | M12: - | N12: 8
A13: 13.156 | B13: 17.53 | C13: 0.662 | D13: 17.53664281 | E13: 4.412692398e-05 | F13: Top thermal boundary (T0) | G13: =B10 -> 17.45 | H13: °C | K13: C12 | L13: =((L11*G13)-G14)/(L11-1) -> 22.11253782 | M13: - | N13: 7
A14: 13.298 | B14: 17.54 | C14: 0.804 | D14: 17.55501707 | E14: 0.0002255125111 | F14: Bottom thermal boundary (TB) | G14: =INDEX(B:B,MATCH(9.99999999999999E+307,B:B)) -> 20.43 | H14: °C
A15: 13.442 | B15: 17.55 | C15: 0.948 | D15: 17.57357478 | E15: 0.0005557704854
A16: 13.583 | B16: 17.57 | C16: 1.089 | D16: 17.59167265 | E16: 0.0004697039728
A17: 13.798 | B17: 17.59 | C17: 1.304 | D17: 17.61912989 | E17: 0.0008485504684
A18: 14.014 | B18: 17.61 | C18: 1.52 | D18: 17.64654691 | E18: 0.001335676528
A19: 14.162 | B19: 17.63 | C19: 1.668 | D19: 17.665236 | E19: =IF(ISERROR((D19-B19)^2),"",(D19-B19)^2) -> 0.001241575781
A20: 14.378 | B20: 17.66 | C20: 1.884 | D20: 17.6923717 | E20: 0.001047926879
A21: 14.598 | B21: 17.69 | C21: 2.104 | D21: 17.71983972 | E21: 0.0008904086855
A22: 14.744 | B22: 17.71 | C22: 2.25 | D22: 17.7379742 | E22: 0.0007825558336
A23: 14.961 | B23: 17.74 | C23: 2.467 | D23: 17.76478927 | E23: 0.0006145079512
A24: 15.177 | B24: 17.77 | C24: 2.683 | D24: 17.79131753 | E24: 0.0004544372248
A25: 15.317 | B25: 17.8 | C25: 2.823 | D25: 17.80842526 | E25: 7.098500088e-05
A26: 15.457 | B26: 17.82 | C26: 2.963 | D26: 17.82546526 | E26: 2.98690293e-05
A27: 15.596 | B27: 17.83 | C27: 3.102 | D27: 17.8423168 | E27: 0.0001517035182
A28: 15.739 | B28: 17.85 | C28: 3.245 | D28: 17.85958415 | E28: 9.185597941e-05
A29: 15.877 | B29: 17.86 | C29: 3.383 | D29: 17.87618155 | E29: 0.0002618424307
A30: 16.087 | B30: 17.89 | C30: 3.593 | D30: 17.90131425 | E30: 0.0001280123435
A31: 16.3 | B31: 17.91 | C31: 3.806 | D31: 17.92665369 | E31: 0.0002773454512
A32: 16.441 | B32: 17.93 | C32: 3.947 | D32: 17.94334376 | E32: 0.0001780558386
A33: 16.581 | B33: 17.95 | C33: 4.087 | D33: 17.95984961 | E33: 9.701482904e-05
A34: 16.719 | B34: 17.97 | C34: 4.225 | D34: 17.97605571 | E34: 3.667165303e-05
A35: 16.859 | B35: 17.98 | C35: 4.365 | D35: 17.99243206 | E35: 0.0001545561095
A36: 16.999 | B36: 18.01 | C36: 4.505 | D36: 18.00874357 | E36: 1.578608698e-06
A37: 17.137 | B37: 18.02 | C37: 4.643 | D37: 18.02475886 | E37: 2.264678087e-05
A38: 17.276 | B38: 18.04 | C38: 4.782 | D38: 18.04082703 | E38: 6.839713571e-07
A39: 17.419 | B39: 18.06 | C39: 4.925 | D39: 18.05729167 | E39: 7.33504847e-06
A40: 17.56 | B40: 18.07 | C40: 5.066 | D40: 18.07346085 | E40: 1.197749763e-05
A41: 17.701 | B41: 18.09 | C41: 5.207 | D41: 18.08956556 | E41: 1.887349915e-07
A42: 17.843 | B42: 18.1 | C42: 5.349 | D42: 18.1057196 | E42: 3.271377387e-05
A43: 17.986 | B43: 18.12 | C43: 5.492 | D43: 18.12192184 | E43: 3.693455736e-06
A44: 18.128 | B44: 18.14 | C44: 5.634 | D44: 18.13794594 | E44: 4.219147434e-06
A45: 18.341 | B45: 18.17 | C45: 5.847 | D45: 18.16186154 | E45: 6.623452796e-05
A46: 18.554 | B46: 18.2 | C46: 6.06 | D46: 18.18563323 | E46: 0.0002064039735
A47: 18.698 | B47: 18.22 | C47: 6.204 | D47: 18.20162315 | E47: 0.0003377087361
A48: 18.843 | B48: 18.24 | C48: 6.349 | D48: 18.21765831 | E48: 0.0004991509998
A49: 18.985 | B49: 18.26 | C49: 6.491 | D49: 18.23329799 | E49: 0.0007129970778
A50: 19.126 | B50: 18.27 | C50: 6.632 | D50: 18.2487654 | E50: 0.0004509082562
A51: 19.262 | B51: 18.29 | C51: 6.768 | D51: 18.26362588 | E51: 0.0006955941233
A52: 19.469 | B52: 18.31 | C52: 6.975 | D52: 18.28613478 | E52: 0.0005695486442
A53: 19.678 | B53: 18.33 | C53: 7.184 | D53: 18.30872761 | E53: 0.0004525144481
A54: 19.813 | B54: 18.34 | C54: 7.319 | D54: 18.32325011 | E54: 0.000280558914
A55: 19.951 | B55: 18.36 | C55: 7.457 | D55: 18.33803802 | E55: 0.0004823286633
A56: 20.092 | B56: 18.37 | C56: 7.598 | D56: 18.3530878 | E56: 0.0002860224973
A57: 20.229 | B57: 18.39 | C57: 7.735 | D57: 18.36765316 | E57: 0.0004993813021
A58: 20.436 | B58: 18.42 | C58: 7.942 | D58: 18.3895537 | E58: 0.0009269774809
A59: 20.644 | B59: 18.44 | C59: 8.15 | D59: 18.41143103 | E59: 0.0008161862996
A60: 20.782 | B60: 18.45 | C60: 8.288 | D60: 18.42587481 | E60: 0.0005820250214
A61: 20.924 | B61: 18.46 | C61: 8.43 | D61: 18.44067841 | E61: 0.0003733240209
A62: 21.062 | B62: 18.47 | C62: 8.568 | D62: 18.45500805 | E62: 0.0002247587015
A63: 21.197 | B63: 18.49 | C63: 8.703 | D63: 18.46897206 | E63: 0.0004421743358
A64: 21.334 | B64: 18.5 | C64: 8.84 | D64: 18.48308844 | E64: 0.0002860007683
A65: 21.47 | B65: 18.52 | C65: 8.976 | D65: 18.49704769 | E65: 0.0005268083836
A66: 21.608 | B66: 18.53 | C66: 9.114 | D66: 18.51115735 | E66: 0.0003550454948
A67: 21.75 | B67: 18.54 | C67: 9.256 | D67: 18.5256185 | E67: 0.0002068274969
A68: 21.894 | B68: 18.56 | C68: 9.4 | D68: 18.54022403 | E68: 0.0003910888752
A69: 22.037 | B69: 18.57 | C69: 9.543 | D69: 18.55466928 | E69: 0.0002350309042
A70: 22.242 | B70: 18.59 | C70: 9.748 | D70: 18.57527568 | E70: 0.0002168056983
A71: 22.45 | B71: 18.62 | C71: 9.956 | D71: 18.59606165 | E71: 0.0005730445493
A72: 22.586 | B72: 18.63 | C72: 10.092 | D72: 18.60958639 | E72: 0.0004167152873
A73: 22.721 | B73: 18.65 | C73: 10.227 | D73: 18.62296025 | E73: 0.0007311483173
A74: 22.855 | B74: 18.66 | C74: 10.361 | D74: 18.63618454 | E74: 0.0005671762878
A75: 22.998 | B75: 18.68 | C75: 10.504 | D75: =IF(C75="Below bottom boundary",#N/A,$L$12*EXP($D$2*C75/$L$10)+$L$13) -> 18.65024175 | E75: =IF(ISERROR((D75-B75)^2),"",(D75-B75)^2) -> 0.0008855532135
A76: 23.133 | B76: 18.69 | C76: =IF(A76-$A$10>0,A76-$A$10,"Below bottom boundary") -> 10.639 | D76: 18.66346039 | E76: 0.0007043510263
A77: 23.34 | B77: 18.71 | C77: 10.846 | D77: 18.68363101 | E77: 0.0006953237686
A78: 23.549 | B78: 18.73 | C78: 11.055 | D78: 18.70387684 | E78: 0.0006824195161
A79: 23.69 | B79: 18.74 | C79: 11.196 | D79: 18.71746794 | E79: 0.0005076937238
A80: 23.904 | B80: 18.75 | C80: 11.41 | D80: 18.7379921 | E80: 0.0001441896297
A81: 24.116 | B81: 18.77 | C81: 11.622 | D81: 18.75820211 | E81: 0.0001391903195
A82: 24.262 | B82: 18.79 | C82: 11.768 | D82: 18.77204989 | E82: 0.000322206401
A83: 24.478 | B83: 18.81 | C83: 11.984 | D83: 18.79243224 | E83: 0.0003086260829
A84: 24.689 | B84: 18.83 | C84: 12.195 | D84: 18.8122227 | E84: 0.0003160325642
A85: 24.828 | B85: 18.84 | C85: 12.334 | D85: 18.82519551 | E85: 0.0002191729269
A86: 25.037 | B86: 18.86 | C86: 12.543 | D86: 18.84460548 | E86: 0.0002369912322
A87: 25.246 | B87: 18.88 | C87: 12.752 | D87: 18.86390085 | E87: 0.0002591827704
A88: 25.385 | B88: 18.89 | C88: 12.891 | D88: 18.87667052 | E88: 0.0001776749079
A89: 25.525 | B89: 18.91 | C89: 13.031 | D89: 18.88948133 | E89: 0.0004210156163
A90: 25.666 | B90: 18.92 | C90: 13.172 | D90: 18.90233239 | E90: 0.0003121444948
A91: 25.8 | B91: 18.93 | C91: 13.306 | D91: 18.91449796 | E91: 0.0002403133684
A92: 25.936 | B92: 18.94 | C92: 13.442 | D92: 18.92679796 | E92: 0.0001742938764
A93: 26.075 | B93: 18.95 | C93: 13.581 | D93: 18.9393204 | E93: 0.0001140537747
A94: 26.214 | B94: 18.97 | C94: 13.72 | D94: 18.95179363 | E94: 0.000331472081
A95: 26.35 | B95: 18.98 | C95: 13.856 | D95: 18.96395019 | E95: 0.0002575965448
A96: 26.488 | B96: 18.99 | C96: 13.994 | D96: 18.97623773 | E96: 0.000189400137
A97: 26.626 | B97: 19.01 | C97: 14.132 | D97: 18.98847732 | E97: 0.0004632258756
A98: 26.763 | B98: 19.02 | C98: 14.269 | D98: 19.00058097 | E98: 0.0003770988923
A99: 26.899 | B99: 19.03 | C99: 14.405 | D99: 19.01254988 | E99: 0.0003045065258
A100: 27.106 | B100: 19.05 | C100: 14.612 | D100: 19.03067899 | E100: 0.0003733015393
A101: 27.314 | B101: 19.07 | C101: 14.82 | D101: 19.04878888 | E101: 0.0004499116076
A102: 27.452 | B102: 19.08 | C102: 14.958 | D102: 19.06074533 | E102: 0.0003707421429
A103: 27.59 | B103: 19.09 | C103: 15.096 | D103: 19.07265513 | E103: 0.0003008445781
A104: 27.728 | B104: 19.1 | C104: 15.234 | D104: 19.08451844 | E104: 0.0002396786004
A105: 27.863 | B105: 19.11 | C105: 15.369 | D105: 19.09607906 | E105: 0.0001937925616
A106: 28.001 | B106: 19.12 | C106: 15.507 | D106: 19.10785096 | E106: 0.0001475991214
A107: 28.139 | B107: 19.13 | C107: 15.645 | D107: 19.11957692 | E107: 0.0001086405257
A108: 28.342 | B108: 19.15 | C108: 15.848 | D108: 19.13674286 | E108: 0.0001757516369
A109: 28.542 | B109: 19.17 | C109: 16.048 | D109: 19.15355884 | E109: 0.0002703118439
A110: 28.676 | B110: 19.18 | C110: 16.182 | D110: 19.16477234 | E110: 0.0002318815353
A111: 28.813 | B111: 19.19 | C111: 16.319 | D111: 19.17619297 | E111: 0.0001906341851
A112: 28.947 | B112: 19.2 | C112: 16.453 | D112: 19.1873207 | E112: 0.0001607647307
A113: 29.082 | B113: 19.2 | C113: 16.588 | D113: 19.19848883 | E113: 2.283643518e-06
A114: 29.216 | B114: 19.21 | C114: 16.722 | D114: 19.20953206 | E114: 2.189639454e-07
A115: 29.351 | B115: 19.22 | C115: 16.857 | D115: 19.22061539 | E115: 3.787099714e-07
A116: 29.549 | B116: 19.24 | C116: 17.055 | D116: 19.23679445 | E116: 1.027556704e-05
A117: 29.745 | B117: 19.25 | C117: 17.251 | D117: 19.25272093 | E117: 7.40344013e-06
A118: 29.886 | B118: 19.26 | C118: 17.392 | D118: 19.26412366 | E118: 1.700458595e-05
A119: 30.027 | B119: 19.27 | C119: 17.533 | D119: 19.27548093 | E119: 3.004061357e-05
A120: 30.235 | B120: 19.29 | C120: 17.741 | D120: 19.2921523 | E120: 4.632386011e-06
A121: 30.44 | B121: 19.31 | C121: 17.946 | D121: 19.30848735 | E121: 2.288103171e-06
A122: 30.579 | B122: 19.32 | C122: 18.085 | D122: 19.31950946 | E122: 2.406300451e-07
A123: 30.777 | B123: 19.33 | C123: 18.283 | D123: 19.33513524 | E123: 2.63707236e-05
A124: 30.972 | B124: 19.35 | C124: 18.478 | D124: 19.35043883 | E124: 1.925697479e-07
A125: 31.111 | B125: 19.37 | C125: 18.617 | D125: 19.36129603 | E125: 7.575904462e-05
A126: 31.315 | B126: 19.38 | C126: 18.821 | D126: 19.37715312 | E126: 8.10474495e-06
A127: 31.519 | B127: 19.4 | C127: 19.025 | D127: 19.39291881 | E127: 5.0143303e-05
A128: 31.651 | B128: 19.41 | C128: 19.157 | D128: 19.40307168 | E128: 4.800159682e-05
A129: 31.784 | B129: 19.42 | C129: 19.29 | D129: 19.41326314 | E129: 4.5385306e-05
A130: 31.977 | B130: 19.43 | C130: 19.483 | D130: 19.42798411 | E130: 4.063822922e-06
A131: 32.184 | B131: 19.44 | C131: 19.69 | D131: 19.4436837 | E131: 1.356964973e-05
A132: 32.318 | B132: 19.45 | C132: 19.824 | D132: 19.45379773 | E132: 1.442278282e-05
A133: 32.448 | B133: 19.46 | C133: 19.954 | D133: 19.46357322 | E133: 1.276793607e-05
A134: 32.577 | B134: 19.47 | C134: 20.083 | D134: 19.47323799 | E134: 1.048458684e-05
A135: 32.712 | B135: 19.47 | C135: 20.218 | D135: 19.48331452 | E135: 0.0001772765325
A136: 32.849 | B136: 19.48 | C136: 20.355 | D136: 19.49350101 | E136: 0.0001822772205
A137: 32.981 | B137: 19.49 | C137: 20.487 | D137: 19.50327839 | E137: 0.0001763156421
A138: 33.112 | B138: 19.51 | C138: 20.618 | D138: 19.51294561 | E138: 8.676638144e-06
A139: 33.252 | B139: 19.52 | C139: 20.758 | D139: =IF(C139="Below bottom boundary",#N/A,$L$12*EXP($D$2*C139/$L$10)+$L$13) -> 19.52323741 | E139: =IF(ISERROR((D139-B139)^2),"",(D139-B139)^2) -> 1.048081138e-05
A140: 33.383 | B140: 19.53 | C140: =IF(A140-$A$10>0,A140-$A$10,"Below bottom boundary") -> 20.889 | D140: 19.53283068 | E140: 8.012771514e-06
A141: 33.513 | B141: 19.54 | C141: 21.019 | D141: 19.54231559 | E141: 5.361963766e-06
A142: 33.717 | B142: 19.56 | C142: 21.223 | D142: 19.55712935 | E142: 8.240636175e-06
A143: 33.918 | B143: 19.57 | C143: 21.424 | D143: 19.57164175 | E143: 2.69533847e-06
A144: 34.052 | B144: 19.58 | C144: 21.558 | D144: 19.58127087 | E144: 1.615098474e-06
A145: 34.181 | B145: 19.59 | C145: 21.687 | D145: 19.59050621 | E145: 2.562494273e-07
A146: 34.313 | B146: 19.6 | C146: 21.819 | D146: 19.59992145 | E146: 6.169603769e-09
A147: 34.451 | B147: 19.6 | C147: 21.957 | D147: 19.60972708 | E147: 9.461611244e-05
A148: 34.586 | B148: 19.61 | C148: 22.092 | D148: 19.61928251 | E148: 8.616507558e-05
A149: 34.718 | B149: 19.62 | C149: 22.224 | D149: 19.62859033 | E149: 7.37937558e-05
A150: 34.852 | B150: 19.63 | C150: 22.358 | D150: 19.63800363 | E150: 6.405810018e-05
A151: 35.053 | B151: 19.65 | C151: 22.559 | D151: 19.65205674 | E151: 4.23016871e-06
A152: 35.257 | B152: 19.66 | C152: 22.763 | D152: 19.66623799 | E152: 3.891251905e-05
A153: 35.399 | B153: 19.67 | C153: 22.905 | D153: 19.67606098 | E153: 3.673544679e-05
A154: 35.607 | B154: 19.68 | C154: 23.113 | D154: 19.69037842 | E154: 0.0001077115875
A155: 35.8 | B155: 19.69 | C155: 23.306 | D155: 19.70358809 | E155: 0.0001846362318
A156: 35.927 | B156: 19.7 | C156: 23.433 | D156: 19.71224114 | E156: 0.0001498455635
A157: 36.118 | B157: 19.71 | C157: 23.624 | D157: 19.7251963 | E157: 0.0002309274361
A158: 36.33 | B158: 19.72 | C158: 23.836 | D158: 19.73949398 | E158: 0.0003800152089
A159: 36.464 | B159: 19.73 | C159: 23.97 | D159: 19.74848699 | E159: 0.0003417689315
A160: 36.592 | B160: 19.74 | C160: 24.098 | D160: 19.75704551 | E160: 0.0002905493657
A161: 36.725 | B161: 19.75 | C161: 24.231 | D161: 19.76590552 | E161: 0.0002529855346
A162: 36.857 | B162: 19.76 | C162: 24.363 | D162: 19.77466596 | E162: 0.0002150904134
A163: 36.987 | B163: 19.77 | C163: 24.493 | D163: 19.7832617 | E163: 0.0001758727821
A164: 37.124 | B164: 19.78 | C164: 24.63 | D164: 19.79228609 | E164: 0.0001509480886
A165: 37.321 | B165: 19.79 | C165: 24.827 | D165: 19.80520152 | E165: 0.0002310862062
A166: 37.523 | B166: 19.8 | C166: 25.029 | D166: 19.8183701 | E166: 0.0003374605805
A167: 37.652 | B167: 19.81 | C167: 25.158 | D167: 19.82674039 | E167: 0.0002802405745
A168: 37.784 | B168: 19.82 | C168: 25.29 | D168: 19.83527372 | E168: 0.0002332865529
A169: 37.91 | B169: 19.82 | C169: 25.416 | D169: 19.84338946 | E169: 0.0005470666748
A170: 38.044 | B170: 19.83 | C170: 25.55 | D170: 19.85198874 | E170: 0.0004835048354
A171: 38.183 | B171: 19.84 | C171: 25.689 | D171: 19.86087447 | E171: 0.0004357433236
A172: 38.317 | B172: 19.84 | C172: 25.823 | D172: 19.86940749 | E172: 0.0008648005025
A173: 38.448 | B173: 19.85 | C173: 25.954 | D173: 19.87771822 | E173: 0.0007682995662
A174: 38.582 | B174: 19.86 | C174: 26.088 | D174: 19.88618741 | E174: 0.0006857804422
A175: 38.712 | B175: 19.87 | C175: 26.218 | D175: 19.89437312 | E175: 0.0005940488506
A176: 38.842 | B176: 19.87 | C176: 26.348 | D176: 19.90252873 | E176: 0.001058118149
A177: 39.044 | B177: 19.89 | C177: 26.55 | D177: 19.91514184 | E177: 0.0006321119261
A178: 39.247 | B178: 19.9 | C178: 26.753 | D178: 19.92774486 | E178: 0.0007697774959
A179: 39.381 | B179: 19.9 | C179: 26.887 | D179: 19.93602447 | E179: 0.001297762684
A180: 39.51 | B180: 19.91 | C180: 27.016 | D180: 19.9439655 | E180: 0.00115365505
A181: 39.644 | B181: 19.92 | C181: 27.15 | D181: 19.95218364 | E181: 0.001035786454
A182: 39.779 | B182: 19.93 | C182: 27.285 | D182: 19.96043161 | E182: 0.0009260829627
A183: 39.911 | B183: 19.94 | C183: 27.417 | D183: 19.96846585 | E183: 0.0008103045564
A184: 40.038 | B184: 19.94 | C184: 27.544 | D184: 19.97616745 | E184: 0.001308084251
A185: 40.169 | B185: 19.95 | C185: 27.675 | D185: 19.98408263 | E185: 0.001161625789
A186: 40.302 | B186: 19.96 | C186: 27.808 | D186: 19.99208866 | E186: 0.00102968202
A187: 40.434 | B187: 19.97 | C187: 27.94 | D187: 20.00000471 | E187: 0.000900282889
A188: 40.629 | B188: 19.98 | C188: 28.135 | D188: 20.01164485 | E188: 0.001001396218
A189: 40.825 | B189: 19.99 | C189: 28.331 | D189: 20.02328004 | E189: 0.001107560895
A190: 40.96 | B190: 20 | C190: 28.466 | D190: 20.03125657 | E190: 0.0009769734621
A191: 41.083 | B191: 20.01 | C191: 28.589 | D191: 20.03849757 | E191: 0.0008121114998
A192: 41.212 | B192: 20.02 | C192: 28.718 | D192: 20.04606472 | E192: 0.0006793696687
A193: 41.34 | B193: 20.02 | C193: 28.846 | D193: 20.05354592 | E193: 0.001125328918
A194: 41.468 | B194: 20.03 | C194: 28.974 | D194: 20.06100004 | E194: 0.0009610024971
A195: 41.6 | B195: 20.04 | C195: 29.106 | D195: 20.06865884 | E195: 0.0008213288906
A196: 41.791 | B196: 20.05 | C196: 29.297 | D196: 20.07969029 | E196: 0.0008815134715
A197: 41.988 | B197: 20.06 | C197: 29.494 | D197: 20.09100592 | E197: 0.0009613667762
A198: 42.182 | B198: 20.07 | C198: 29.688 | D198: 20.10208766 | E198: 0.001029618005
A199: 42.378 | B199: 20.08 | C199: 29.884 | D199: 20.11322196 | E199: 0.001103698769
A200: 42.572 | B200: 20.09 | C200: 30.078 | D200: 20.12418192 | E200: 0.001168403865
A201: 42.767 | B201: 20.1 | C201: 30.273 | D201: 20.13513783 | E201: 0.001234667304
... 1808 more rows

Sheet Plot-1 layer

Sheet 2 layer
A1: 2-Layer | C1: Summary of Results
C2: Optimal Darcy flux (m s-1) | D2: =D3/365/60/60/24 -> -2.17195355e-06
C3: Optimal Darcy flux (m yr-1) | D3: -68.49472717 | E3: Enter flux in m/yr | H3: Solve macro
C4: RMSE (°C) | D4: =SQRT(AVERAGE(E10:E2109)) ->  | H4: minimizes cell D4
C5: Peclet Number | D5: =ABS(D2*G15*((G10/G13)+(G11/G14))) -> 
K6: To be hidden
A8: Table 1: Field Data | F8: Table 2: Input Parameters | K8: Table 3: Calculated Equation Coefficient
A9: Depth (m) | B9: Temperature (°C) | C9: Adjusted Depth (m) | D9: Calculated Temp. (°C) | E9: Error2 | F9: Parameter | G9: Value | H9: Unit | K9: Parameter | L9: Value | M9: Units | N9: Eq. # [in Kurylyk et al.]
C10: =IF(A10-$A$10>=0,A10-$A$10,"Past bottom boundary") -> 0 | D10: =IF(C10="Below bottom boundary",#N/A,IF(C10<$G$10,$L$13*EXP($D$2*C10/$L$10)+$L$14,$L$15*EXP($D$2*C10/$L$11)+$L$16)) ->  | E10: =IF(ISERROR((D10-B10)^2),"",(D10-B10)^2) ->  | F10: Thickness of layer 1 (b1) | H10: m | K10: σ1 | L10: =G13/$G$15 -> 0 | M10: m2 s-1 | N10: NA
C11: =IF(A11-$A$10>0,A11-$A$10,"Below bottom boundary") -> Below bottom boundary | D11: =IF(C11="Below bottom boundary",#N/A,IF(C11<$G$10,$L$13*EXP($D$2*C11/$L$10)+$L$14,$L$15*EXP($D$2*C11/$L$11)+$L$16)) ->  | E11: =IF(ISERROR((D11-B11)^2),"",(D11-B11)^2) ->  | F11: Thickness of layer 2 (b2) | H11: m | K11: σ2 | L11: =G14/$G$15 -> 0 | M11: m2 s-1 | N11: NA
C12: =IF(A12-$A$10>0,A12-$A$10,"Below bottom boundary") -> Below bottom boundary | F12: Total thickness (d2) | G12: =INDEX(C:C,MATCH(9.99999999999999E+307,C:C)) -> 0 | H12: m | K12: a | L12: =EXP(D2*((G10/L10)+(G11/L11))) ->  | M12: ="-" -> - | N12: 10
C13: Below bottom boundary | F13: Thermal conduct. of layer 1 (λ1) | H13: W m-1 °C-1 | K13: C11 | L13: =(G17-G16)/(L12-1) ->  | M13: - | N13: 8
C14: Below bottom boundary | F14: Thermal conduct. of layer 2 (λ2) | H14: W m-1 °C-1 | K14: C12 | L14: =((L12*G16)-G17)/(L12-1) ->  | M14: - | N14: 7
C15: Below bottom boundary | F15: Heat capacity of water (cwρw) | G15: 4182000 | H15: J m-3 °C-1 | K15: C21 | L15: =L13*EXP(D2*G10*((1/L10)-(1/L11))) ->  | M15: - | N15: 9
C16: Below bottom boundary | F16: Top thermal boundary (T0) | G16: =B10 -> 0 | H16: °C | K16: C22 | L16: =L14 ->  | M16: - | N16: 7
C17: Below bottom boundary | F17: Bottom thermal boundary (TB) | G17: =INDEX(B:B,MATCH(9.99999999999999E+307,B:B)) ->  | H17: °C
C18: Below bottom boundary
C19: Below bottom boundary | F19: Check message below to ensure congruence between
C20: Below bottom boundary | F20: layer thickness values and total adjusted depth of domain
C21: Below bottom boundary | F21: =IF(G12=SUM(G10:G11),"Layer thickness values and entered depths match","Combined layer thicknesses do not match entered depths!") -> Layer thickness values and entered depths match
C22: Below bottom boundary
C23: Below bottom boundary
C24: Below bottom boundary
C25: Below bottom boundary
C26: Below bottom boundary
C27: Below bottom boundary
C28: Below bottom boundary
C29: Below bottom boundary
C30: Below bottom boundary
C31: Below bottom boundary
C32: Below bottom boundary
C33: Below bottom boundary
C34: Below bottom boundary
C35: Below bottom boundary
C36: Below bottom boundary
C37: Below bottom boundary
C38: Below bottom boundary
C39: Below bottom boundary
C40: Below bottom boundary
C41: Below bottom boundary
C42: Below bottom boundary
C43: Below bottom boundary
C44: Below bottom boundary
C45: Below bottom boundary
C46: Below bottom boundary
C47: Below bottom boundary
C48: Below bottom boundary
C49: Below bottom boundary
C50: Below bottom boundary
C51: Below bottom boundary
C52: Below bottom boundary
C53: Below bottom boundary
C54: Below bottom boundary
C55: Below bottom boundary
C56: Below bottom boundary
C57: Below bottom boundary
C58: Below bottom boundary
C59: Below bottom boundary
C60: Below bottom boundary
C61: Below bottom boundary
C62: Below bottom boundary
C63: Below bottom boundary
C64: Below bottom boundary
C65: Below bottom boundary
C66: Below bottom boundary
C67: Below bottom boundary
C68: Below bottom boundary
C69: Below bottom boundary
C70: Below bottom boundary
C71: Below bottom boundary
C72: Below bottom boundary
C73: Below bottom boundary
C74: Below bottom boundary
C75: Below bottom boundary | D75: =IF(C75="Below bottom boundary",#N/A,IF(C75<$G$10,$L$13*EXP($D$2*C75/$L$10)+$L$14,$L$15*EXP($D$2*C75/$L$11)+$L$16)) ->  | E75: =IF(ISERROR((D75-B75)^2),"",(D75-B75)^2) -> 
C76: =IF(A76-$A$10>0,A76-$A$10,"Below bottom boundary") -> Below bottom boundary
C77: Below bottom boundary
C78: Below bottom boundary
C79: Below bottom boundary
C80: Below bottom boundary
C81: Below bottom boundary
C82: Below bottom boundary
C83: Below bottom boundary
C84: Below bottom boundary
C85: Below bottom boundary
C86: Below bottom boundary
C87: Below bottom boundary
C88: Below bottom boundary
C89: Below bottom boundary
C90: Below bottom boundary
C91: Below bottom boundary
C92: Below bottom boundary
C93: Below bottom boundary
C94: Below bottom boundary
C95: Below bottom boundary
C96: Below bottom boundary
C97: Below bottom boundary
C98: Below bottom boundary
C99: Below bottom boundary
C100: Below bottom boundary
C101: Below bottom boundary
C102: Below bottom boundary
C103: Below bottom boundary
C104: Below bottom boundary
C105: Below bottom boundary
C106: Below bottom boundary
C107: Below bottom boundary
C108: Below bottom boundary
C109: Below bottom boundary
C110: Below bottom boundary
C111: Below bottom boundary
C112: Below bottom boundary
C113: Below bottom boundary
C114: Below bottom boundary
C115: Below bottom boundary
C116: Below bottom boundary
C117: Below bottom boundary
C118: Below bottom boundary
C119: Below bottom boundary
C120: Below bottom boundary
C121: Below bottom boundary
C122: Below bottom boundary
C123: Below bottom boundary
C124: Below bottom boundary
C125: Below bottom boundary
C126: Below bottom boundary
C127: Below bottom boundary
C128: Below bottom boundary
C129: Below bottom boundary
C130: Below bottom boundary
C131: Below bottom boundary
C132: Below bottom boundary
C133: Below bottom boundary
C134: Below bottom boundary
C135: Below bottom boundary
C136: Below bottom boundary
C137: Below bottom boundary
C138: Below bottom boundary
C139: Below bottom boundary | D139: =IF(C139="Below bottom boundary",#N/A,IF(C139<$G$10,$L$13*EXP($D$2*C139/$L$10)+$L$14,$L$15*EXP($D$2*C139/$L$11)+$L$16)) ->  | E139: =IF(ISERROR((D139-B139)^2),"",(D139-B139)^2) -> 
C140: =IF(A140-$A$10>0,A140-$A$10,"Below bottom boundary") -> Below bottom boundary
C141: Below bottom boundary
C142: Below bottom boundary
C143: Below bottom boundary
C144: Below bottom boundary
C145: Below bottom boundary
C146: Below bottom boundary
C147: Below bottom boundary
C148: Below bottom boundary
C149: Below bottom boundary
C150: Below bottom boundary
C151: Below bottom boundary
C152: Below bottom boundary
C153: Below bottom boundary
C154: Below bottom boundary
C155: Below bottom boundary
C156: Below bottom boundary
C157: Below bottom boundary
C158: Below bottom boundary
C159: Below bottom boundary
C160: Below bottom boundary
C161: Below bottom boundary
C162: Below bottom boundary
C163: Below bottom boundary
C164: Below bottom boundary
C165: Below bottom boundary
C166: Below bottom boundary
C167: Below bottom boundary
C168: Below bottom boundary
C169: Below bottom boundary
C170: Below bottom boundary
C171: Below bottom boundary
C172: Below bottom boundary
C173: Below bottom boundary
C174: Below bottom boundary
C175: Below bottom boundary
C176: Below bottom boundary
C177: Below bottom boundary
C178: Below bottom boundary
C179: Below bottom boundary
C180: Below bottom boundary
C181: Below bottom boundary
C182: Below bottom boundary
C183: Below bottom boundary
C184: Below bottom boundary
C185: Below bottom boundary
C186: Below bottom boundary
C187: Below bottom boundary
C188: Below bottom boundary
C189: Below bottom boundary
C190: Below bottom boundary
C191: Below bottom boundary
C192: Below bottom boundary
C193: Below bottom boundary
C194: Below bottom boundary
C195: Below bottom boundary
C196: Below bottom boundary
C197: Below bottom boundary
C198: Below bottom boundary
C199: Below bottom boundary
C200: Below bottom boundary
C201: Below bottom boundary
... 1808 more rows

Sheet Plot-2 layer

Sheet 3 layer
A1: 3-Layer | C1: Summary of Results
C2: Optimal Darcy flux (m s-1) | D2: =D3/365/24/60/60 -> 3.170977933e-08
C3: Optimal Darcy flux (m yr-1) | D3: 0.9999996009 | E3: Enter flux in m/yr | H3: Solve macro
C4: RMSE (°C) | D4: =SQRT(AVERAGE(E10:E2109)) -> 4.324728922e-07 | H4: minimizes cell D4
C5: Peclet Number | D5: =ABS(D2*G17*((G10/G14)+(G11/G15)+(G12/G16))) -> 9.811509524
K6: To be hidden
A8: Table 1: Field Data | F8: Table 2: Input Parameters | K8: Table 3: Calculated Equation Coefficient
A9: Depth (m) | B9: Temperature (°C) | C9: Adjusted Depth (m) | D9: Calculated Temp. (°C) | E9: Error2 | F9: Parameter | G9: Value | H9: Unit | K9: Parameter | L9: Value | M9: Units | N9: Eq. # [in Kurylyk et al.]
A10: 5 | B10: 10 | C10: =IF(A10-$A$10>=0,A10-$A$10,"Past bottom boundary") -> 0 | D10: =IF(C10="Below bottom boundary",#N/A,IF(C10<$G$10,$L$14*EXP($D$2*C10/$L$10)+$L$15,IF(C10<($G$10+$G$11),$L$16*EXP($D$2*C10/$L$11)+$L$17,$L$18*EXP($D$2*C10/$L$12)+$L$19))) -> 10 | E10: =IF(ISERROR((D10-B10)^2),"",(D10-B10)^2) -> 0 | F10: Thickness of layer 1 (b1) | G10: 50 | H10: m | K10: σ1 | L10: =G14/$G$17 -> 1.918938307e-07 | M10: m2 s-1 | N10: NA
A11: 6 | B11: 10.00004925 | C11: =IF(A11-$A$10>0,A11-$A$10,"Below bottom boundary") -> 1 | D11: =IF(C11="Below bottom boundary",#N/A,IF(C11<$G$10,$L$14*EXP($D$2*C11/$L$10)+$L$15,IF(C11<($G$10+$G$11),$L$16*EXP($D$2*C11/$L$11)+$L$17,$L$18*EXP($D$2*C11/$L$12)+$L$19))) -> 10.00004925 | E11: =IF(ISERROR((D11-B11)^2),"",(D11-B11)^2) -> 2.943362961e-20 | F11: Thickness of layer 2 (b2) | G11: 25 | H11: m | K11: σ2 | L11: =G15/$G$17 -> 7.675753228e-07 | M11: m2 s-1 | N11: NA
A12: 7 | B12: 10.00010735 | C12: =IF(A12-$A$10>0,A12-$A$10,"Below bottom boundary") -> 2 | D12: 10.00010735 | E12: 1.36990081e-19 | F12: Thickness of layer 3 (b3) | G12: 25 | H12: m | K12: σ3 | L12: =G16/$G$17 -> 1.535150646e-06 | M12: m2 s-1 | N12: NA
A13: 8 | B13: 10.00017589 | C13: 3 | D13: 10.00017589 | E13: 3.598039765e-19 | F13: Total thickness (d3) | G13: =INDEX(C:C,MATCH(9.99999999999999E+307,C:C)) -> 100 | H13: m | K13: a | L13: =EXP(D2*((G10/L10)+(G11/L11)+(G12/L12))) -> 18242.5038 | M13: ="-" -> - | N13: 10
A14: 9 | B14: 10.00025675 | C14: 4 | D14: 10.00025675 | E14: 7.490835324e-19 | F14: Thermal conduct. of layer 1 (λ1) | G14: 0.8025 | H14: W m-1 °C-1 | K14: C11 | L14: =(G19-G18)/(L13-1) -> 0.0002741002088 | M14: - | N14: 8
A15: 10 | B15: 10.00035213 | C15: 5 | D15: 10.00035214 | E15: 1.374981948e-18 | F15: Thermal conduct. of layer 2 (λ2) | G15: 3.21 | H15: W m-1 °C-1 | K15: C12 | L15: =((L13*G18)-G19)/(L13-1) -> 9.9997259 | M15: - | N15: 7
A16: 11 | B16: 10.00046466 | C16: 6 | D16: 10.00046466 | E16: 2.333125717e-18 | F16: Thermal conduct. of layer 3 (λ3) | G16: 6.42 | H16: W m-1 °C-1 | K16: C21 | L16: =L14*EXP(D2*G10*((1/L10)-(1/L11))) -> 0.1346234125 | M16: - | N16: 9
A17: 12 | B17: 10.0005974 | C17: 7 | D17: 10.0005974 | E17: 3.753228028e-18 | F17: Heat capacity of water (cwρw) | G17: 4182000 | H17: J m-3 °C-1 | K17: C22 | L17: =L15 -> 9.9997259 | M17: - | N17: 7
A18: 13 | B18: 10.000754 | C18: 8 | D18: 10.000754 | E18: 5.810571372e-18 | F18: Top thermal boundary (T0) | G18: =B10 -> 10 | H18: °C | K18: C31 | L18: =L16*EXP(D2*(G10+G11)*((1/L11)-(1/L12))) -> 0.6337579236 | M18: ="-" -> - | N18: 9
A19: 14 | B19: 10.00093873 | C19: 9 | D19: 10.00093873 | E19: 8.741107183e-18 | F19: Bottom thermal boundary (TB) | G19: =INDEX(B:B,MATCH(9.99999999999999E+307,B:B)) -> 15 | H19: °C | K19: C32 | L19: =L17 -> 9.9997259 | M19: - | N19: 7
A20: 15 | B20: 10.00115665 | C20: 10 | D20: 10.00115666 | E20: 1.286155511e-17
A21: 16 | B21: 10.00141374 | C21: 11 | D21: 10.00141374 | E21: 1.859563892e-17 | F21: Check message below to ensure congruence between
A22: 17 | B22: 10.00171701 | C22: 12 | D22: 10.00171702 | E22: 2.650882954e-17 | F22: layer thickness values and total adjusted depth of domain
A23: 18 | B23: 10.00207478 | C23: 13 | D23: 10.00207479 | E23: 3.735371871e-17 | F23: =IF(G13=SUM(G10:G12),"Layer thickness values and entered depths match","Combined layer thicknesses do not match entered depths!") -> Layer thickness values and entered depths match
A24: 19 | B24: 10.00249684 | C24: 14 | D24: 10.00249685 | E24: 5.212956291e-17
A25: 20 | B25: 10.00299473 | C25: 15 | D25: 10.00299474 | E25: 7.215989884e-17
A26: 21 | B26: 10.00358209 | C26: 16 | D26: 10.0035821 | E26: 9.919369033e-17
A27: 22 | B27: 10.00427498 | C27: 17 | D27: 10.004275 | E27: 1.355367696e-16
A28: 23 | B28: 10.00509238 | C28: 18 | D28: 10.0050924 | E28: 1.842219545e-16
A29: 24 | B29: 10.00605665 | C29: 19 | D29: 10.00605667 | E29: 2.492289812e-16
A30: 25 | B30: 10.00719419 | C30: 20 | D30: 10.0071942 | E30: 3.357672218e-16
A31: 26 | B31: 10.00853612 | C31: 21 | D31: 10.00853614 | E31: 4.506389489e-16
A32: 27 | B32: 10.01011917 | C32: 22 | D32: 10.0101192 | E32: 6.027028178e-16
A33: 28 | B33: 10.01198667 | C33: 23 | D33: 10.0119867 | E33: 8.034641573e-16
A34: 29 | B34: 10.01418974 | C34: 24 | D34: 10.01418977 | E34: 1.067822013e-15
A35: 30 | B35: 10.01678866 | C35: 25 | D35: 10.0167887 | E35: 1.415011774e-15
A36: 31 | B36: 10.01985456 | C36: 26 | D36: 10.0198546 | E36: 1.869783323e-15
A37: 32 | B37: 10.02347136 | C37: 27 | D37: 10.02347141 | E37: 2.463870418e-15
A38: 33 | B38: 10.02773803 | C38: 28 | D38: 10.02773809 | E38: 3.237802985e-15
A39: 34 | B39: 10.03277136 | C39: 29 | D39: 10.03277143 | E39: 4.243127733e-15
A40: 35 | B40: 10.0387091 | C40: 30 | D40: 10.03870918 | E40: 5.545097792e-15
A41: 36 | B41: 10.04571376 | C41: 31 | D41: 10.04571384 | E41: 7.225896596e-15
A42: 37 | B42: 10.05397704 | C42: 32 | D42: 10.05397713 | E42: 9.388437327e-15
A43: 38 | B43: 10.06372509 | C43: 33 | D43: 10.0637252 | E43: 1.216076638e-14
A44: 39 | B44: 10.07522472 | C44: 34 | D44: 10.07522484 | E44: 1.570104346e-14
A45: 40 | B45: 10.08879064 | C45: 35 | D45: 10.08879079 | E45: 2.020299568e-14
A46: 41 | B46: 10.10479415 | C46: 36 | D46: 10.10479431 | E46: 2.590162499e-14
A47: 42 | B47: 10.12367322 | C47: 37 | D47: 10.1236734 | E47: 3.307876647e-14
A48: 43 | B48: 10.14594456 | C48: 38 | D48: 10.14594477 | E48: 4.20678277e-14
A49: 44 | B49: 10.1722177 | C49: 39 | D49: 10.17221793 | E49: 5.32566747e-14
A50: 45 | B50: 10.20321171 | C50: 40 | D50: 10.20321197 | E50: 6.70871367e-14
A51: 46 | B51: 10.23977484 | C51: 41 | D51: 10.23977513 | E51: 8.404888648e-14
A52: 47 | B52: 10.28290777 | C52: 42 | D52: 10.28290809 | E52: 1.046646388e-13
A53: 48 | B53: 10.333791 | C53: 43 | D53: 10.33379136 | E53: 1.294624963e-13
A54: 49 | B54: 10.39381713 | C54: 44 | D54: 10.39381753 | E54: 1.589300315e-13
A55: 50 | B55: 10.46462899 | C55: 45 | D55: 10.46462943 | E55: 1.93443366e-13
A56: 51 | B56: 10.5481646 | C56: 46 | D56: 10.54816508 | E56: 2.331633408e-13
A57: 52 | B57: 10.64671022 | C57: 47 | D57: 10.64671074 | E57: 2.778902727e-13
A58: 53 | B58: 10.7629629 | C58: 48 | D58: 10.76296347 | E58: 3.268697597e-13
A59: 54 | B59: 10.90010431 | C59: 49 | D59: 10.90010493 | E59: 3.785459314e-13
A60: 55 | B60: 11.06188784 | C60: 50 | D60: 11.0618885 | E60: 4.302680722e-13
A61: 56 | B61: 11.10668647 | C61: 51 | D61: 11.10668714 | E61: 4.427652921e-13
A62: 57 | B62: 11.15337456 | C62: 52 | D62: 11.15337524 | E62: 4.549408599e-13
A63: 58 | B63: 11.20203181 | C63: 53 | D63: 11.20203249 | E63: 4.667088036e-13
A64: 59 | B64: 11.25274127 | C64: 54 | D64: 11.25274196 | E64: 4.77976103e-13
A65: 60 | B65: 11.30558949 | C65: 55 | D65: 11.30559019 | E65: 4.886425412e-13
A66: 61 | B66: 11.36066668 | C66: 56 | D66: 11.36066739 | E66: 4.986007103e-13
A67: 62 | B67: 11.41806686 | C67: 57 | D67: 11.41806757 | E67: 5.077360126e-13
A68: 63 | B68: 11.47788799 | C68: 58 | D68: 11.47788871 | E68: 5.159268384e-13
A69: 64 | B69: 11.54023218 | C69: 59 | D69: 11.54023291 | E69: 5.230448449e-13
A70: 65 | B70: 11.60520586 | C70: 60 | D70: 11.60520659 | E70: 5.289554012e-13
A71: 66 | B71: 11.67291992 | C71: 61 | D71: 11.67292066 | E71: 5.335181953e-13
A72: 67 | B72: 11.74348995 | C72: 62 | D72: 11.74349068 | E72: 5.365881141e-13
A73: 68 | B73: 11.8170364 | C73: 63 | D73: 11.81703713 | E73: 5.38016335e-13
A74: 69 | B74: 11.8936848 | C74: 64 | D74: 11.89368554 | E74: 5.376517218e-13
A75: 70 | B75: 11.97356599 | C75: 65 | D75: =IF(C75="Below bottom boundary",#N/A,IF(C75<$G$10,$L$14*EXP($D$2*C75/$L$10)+$L$15,IF(C75<($G$10+$G$11),$L$16*EXP($D$2*C75/$L$11)+$L$17,$L$18*EXP($D$2*C75/$L$12)+$L$19))) -> 11.97356673 | E75: =IF(ISERROR((D75-B75)^2),"",(D75-B75)^2) -> 5.353426176e-13
A76: 71 | B76: 12.05681632 | C76: =IF(A76-$A$10>0,A76-$A$10,"Below bottom boundary") -> 66 | D76: 12.05681705 | E76: 5.309389936e-13
A77: 72 | B77: 12.14357788 | C77: 67 | D77: 12.14357861 | E77: 5.24295123e-13
A78: 73 | B78: 12.23399877 | C78: 68 | D78: 12.23399949 | E78: 5.152727859e-13
A79: 74 | B79: 12.32823333 | C79: 69 | D79: 12.32823404 | E79: 5.037450992e-13
A80: 75 | B80: 12.4264424 | C80: 70 | D80: 12.4264431 | E80: 4.896011044e-13
A81: 76 | B81: 12.52879362 | C81: 71 | D81: 12.52879431 | E81: 4.727511944e-13
A82: 77 | B82: 12.63546169 | C82: 72 | D82: 12.63546236 | E82: 4.531334787e-13
A83: 78 | B83: 12.74662868 | C83: 73 | D83: 12.74662934 | E83: 4.307212835e-13
A84: 79 | B84: 12.86248435 | C84: 74 | D84: 12.86248498 | E84: 4.055318949e-13
A85: 80 | B85: 12.98322643 | C85: 75 | D85: 12.98322705 | E85: 3.77636753e-13
A86: 81 | B86: 13.04549396 | C86: 76 | D86: 13.04549456 | E86: 3.627145252e-13
A87: 82 | B87: 13.10906104 | C87: 77 | D87: 13.10906163 | E87: 3.471732595e-13
A88: 83 | B88: 13.17395481 | C88: 78 | D88: 13.17395539 | E88: 3.310426777e-13
A89: 84 | B89: 13.24020295 | C89: 79 | D89: 13.24020351 | E89: 3.143584592e-13
A90: 85 | B90: 13.30783374 | C90: 80 | D90: 13.30783428 | E90: 2.971627717e-13
A91: 86 | B91: 13.37687602 | C91: 81 | D91: 13.37687655 | E91: 2.795048613e-13
A92: 87 | B92: 13.44735925 | C92: 82 | D92: 13.44735976 | E92: 2.61441686e-13
A93: 88 | B93: 13.51931352 | C93: 83 | D93: 13.51931401 | E93: 2.43038598e-13
A94: 89 | B94: 13.59276951 | C94: 84 | D94: 13.59276999 | E94: 2.243700399e-13
A95: 90 | B95: 13.66775858 | C95: 85 | D95: 13.66775904 | E95: 2.055203464e-13
A96: 91 | B96: 13.74431272 | C96: 86 | D96: 13.74431315 | E96: 1.865845571e-13
A97: 92 | B97: 13.82246459 | C97: 87 | D97: 13.822465 | E97: 1.676693069e-13
A98: 93 | B98: 13.90224754 | C98: 88 | D98: 13.90224792 | E98: 1.488937644e-13
A99: 94 | B99: 13.9836956 | C99: 89 | D99: 13.98369597 | E99: 1.303906543e-13
A100: 95 | B100: 14.06684355 | C100: 90 | D100: 14.06684388 | E100: 1.123073284e-13
A101: 96 | B101: 14.15172683 | C101: 91 | D101: 14.15172714 | E101: 9.480691831e-14
A102: 97 | B102: 14.23838169 | C102: 92 | D102: 14.23838197 | E102: 7.806957934e-14
A103: 98 | B103: 14.32684509 | C103: 93 | D103: 14.32684534 | E103: 6.229378405e-14
A104: 99 | B104: 14.41715477 | C104: 94 | D104: 14.41715499 | E104: 4.769774233e-14
A105: 100 | B105: 14.50934928 | C105: 95 | D105: 14.50934947 | E105: 3.452088793e-14
A106: 101 | B106: 14.60346794 | C106: 96 | D106: 14.60346809 | E106: 2.302546915e-14
A107: 102 | B107: 14.69955092 | C107: 97 | D107: 14.69955103 | E107: 1.349825073e-14
A108: 103 | B108: 14.79763921 | C108: 98 | D108: 14.79763928 | E108: 6.252322551e-15
A109: 104 | B109: 14.89777466 | C109: 99 | D109: 14.8977747 | E109: 1.629024793e-15
A110: 105 | B110: 15 | C110: 100 | D110: 15 | E110: 0
C111: Below bottom boundary
C112: Below bottom boundary
C113: Below bottom boundary
C114: Below bottom boundary
C115: Below bottom boundary
C116: Below bottom boundary
C117: Below bottom boundary
C118: Below bottom boundary
C119: Below bottom boundary
C120: Below bottom boundary
C121: Below bottom boundary
C122: Below bottom boundary
C123: Below bottom boundary
C124: Below bottom boundary
C125: Below bottom boundary
C126: Below bottom boundary
C127: Below bottom boundary
C128: Below bottom boundary
C129: Below bottom boundary
C130: Below bottom boundary
C131: Below bottom boundary
C132: Below bottom boundary
C133: Below bottom boundary
C134: Below bottom boundary
C135: Below bottom boundary
C136: Below bottom boundary
C137: Below bottom boundary
C138: Below bottom boundary
C139: Below bottom boundary | D139: =IF(C139="Below bottom boundary",#N/A,IF(C139<$G$10,$L$14*EXP($D$2*C139/$L$10)+$L$15,IF(C139<($G$10+$G$11),$L$16*EXP($D$2*C139/$L$11)+$L$17,$L$18*EXP($D$2*C139/$L$12)+$L$19))) ->  | E139: =IF(ISERROR((D139-B139)^2),"",(D139-B139)^2) -> 
C140: =IF(A140-$A$10>0,A140-$A$10,"Below bottom boundary") -> Below bottom boundary
C141: Below bottom boundary
C142: Below bottom boundary
C143: Below bottom boundary
C144: Below bottom boundary
C145: Below bottom boundary
C146: Below bottom boundary
C147: Below bottom boundary
C148: Below bottom boundary
C149: Below bottom boundary
C150: Below bottom boundary
C151: Below bottom boundary
C152: Below bottom boundary
C153: Below bottom boundary
C154: Below bottom boundary
C155: Below bottom boundary
C156: Below bottom boundary
C157: Below bottom boundary
C158: Below bottom boundary
C159: Below bottom boundary
C160: Below bottom boundary
C161: Below bottom boundary
C162: Below bottom boundary
C163: Below bottom boundary
C164: Below bottom boundary
C165: Below bottom boundary
C166: Below bottom boundary
C167: Below bottom boundary
C168: Below bottom boundary
C169: Below bottom boundary
C170: Below bottom boundary
C171: Below bottom boundary
C172: Below bottom boundary
C173: Below bottom boundary
C174: Below bottom boundary
C175: Below bottom boundary
C176: Below bottom boundary
C177: Below bottom boundary
C178: Below bottom boundary
C179: Below bottom boundary
C180: Below bottom boundary
C181: Below bottom boundary
C182: Below bottom boundary
C183: Below bottom boundary
C184: Below bottom boundary
C185: Below bottom boundary
C186: Below bottom boundary
C187: Below bottom boundary
C188: Below bottom boundary
C189: Below bottom boundary
C190: Below bottom boundary
C191: Below bottom boundary
C192: Below bottom boundary
C193: Below bottom boundary
C194: Below bottom boundary
C195: Below bottom boundary
C196: Below bottom boundary
C197: Below bottom boundary
C198: Below bottom boundary
C199: Below bottom boundary
C200: Below bottom boundary
C201: Below bottom boundary
... 1808 more rows

Sheet Plot-3 layer

Sheet 4 layer
A1: 4-Layer | C1: Summary of Results
C2: Optimal Darcy flux (m s-1) | D2: =D3/365/24/60/60 -> 0
C3: Optimal Darcy flux (m yr-1) | E3: Enter flux in m/yr | H3: Solve macro
C4: RMSE (°C) | D4: =SQRT(AVERAGE(E10:E2109)) ->  | H4: minimizes cell D4
C5: Peclet Number | D5: =ABS(D2*G19*((G10/G15)+(G11/G16)+(G12/G17)+(G13/G18))) -> 
K6: To be hidden
A8: Table 1: Field Data | F8: Table 2: Input Parameters | K8: Table 3: Calculated Equation Coefficient
A9: Depth (m) | B9: Temperature (°C) | C9: Adjusted Depth (m) | D9: Calculated Temp. (°C) | E9: Error2 | F9: Parameter | G9: Value | H9: Unit | K9: Parameter | L9: Value | M9: Units | N9: Eq. # [in Kurylyk et al.]
C10: =IF(A10-$A$10>=0,A10-$A$10,"Past bottom boundary") -> 0 | D10: =IF(C10="Below bottom boundary",#N/A,IF(C10<$G$10,$L$15*EXP($D$2*C10/$L$10)+$L$16,IF(C10<($G$10+$G$11),$L$17*EXP($D$2*C10/$L$11)+$L$18,IF(C10<($G$10+$G$11+$G$12),$L$19*EXP($D$2*C10/$L$12)+$L$20,$L$21*EXP($D$2*C10/$L$13)+$L$22)))) ->  | E10: =IF(ISERROR((D10-B10)^2),"",(D10-B10)^2) ->  | F10: Thickness of layer 1 (b1) | H10: m | K10: σ1 | L10: =G15/$G$19 -> 0 | M10: m2 s-1 | N10: NA
C11: =IF(A11-$A$10>0,A11-$A$10,"Below bottom boundary") -> Below bottom boundary | D11: =IF(C11="Below bottom boundary",#N/A,IF(C11<$G$10,$L$15*EXP($D$2*C11/$L$10)+$L$16,IF(C11<($G$10+$G$11),$L$17*EXP($D$2*C11/$L$11)+$L$18,IF(C11<($G$10+$G$11+$G$12),$L$19*EXP($D$2*C11/$L$12)+$L$20,$L$21*EXP($D$2*C11/$L$13)+$L$22)))) ->  | E11: =IF(ISERROR((D11-B11)^2),"",(D11-B11)^2) ->  | F11: Thickness of layer 2 (b2) | H11: m | K11: σ2 | L11: =G16/$G$19 -> 0 | M11: m2 s-1 | N11: NA
C12: =IF(A12-$A$10>0,A12-$A$10,"Below bottom boundary") -> Below bottom boundary | D12: =IF(C12="Below bottom boundary",#N/A,IF(C12<$G$10,$L$15*EXP($D$2*C12/$L$10)+$L$16,IF(C12<($G$10+$G$11),$L$17*EXP($D$2*C12/$L$11)+$L$18,IF(C12<($G$10+$G$11+$G$12),$L$19*EXP($D$2*C12/$L$12)+$L$20,$L$21*EXP($D$2*C12/$L$13)+$L$22)))) ->  | F12: Thickness of layer 3 (b3) | H12: m | K12: σ3 | L12: 0 | M12: m2 s-1 | N12: NA
C13: Below bottom boundary | F13: Thickness of layer 4 (b4) | H13: m | K13: σ4 | L13: 0 | M13: m2 s-1 | N13: NA
C14: Below bottom boundary | F14: Total thickness (d4) | G14: =INDEX(C:C,MATCH(9.99999999999999E+307,C:C)) -> 0 | H14: m | K14: a | L14: =EXP(D2*((G10/L10)+(G11/L11)+(G12/L12)+(G13/L13))) ->  | M14: ="-" -> - | N14: 10
C15: Below bottom boundary | F15: Thermal conduct. of layer 1 (λ1) | H15: W m-1 °C-1 | K15: C11 | L15: =(G21-G20)/(L14-1) ->  | M15: - | N15: 8
C16: Below bottom boundary | F16: Thermal conduct. of layer 2 (λ2) | H16: W m-1 °C-1 | K16: C12 | L16: =((L14*G20)-G21)/(L14-1) ->  | M16: - | N16: 7
C17: Below bottom boundary | F17: Thermal conduct. of layer 3 (λ3) | H17: W m-1 °C-1 | K17: C21 | L17: =L15*EXP(D2*G10*((1/L10)-(1/L11))) ->  | M17: - | N17: 9
C18: Below bottom boundary | F18: Thermal conduct. of layer 4 (λ4) | H18: W m-1 °C-1 | K18: C22 | L18: =L16 ->  | M18: - | N18: 7
C19: Below bottom boundary | F19: Heat capacity of water (cwρw) | G19: 4182000 | H19: J m-3 °C-1 | K19: C31 | L19: =L17*EXP(D2*(G10+G11)*((1/L11)-(1/L12))) ->  | M19: ="-" -> - | N19: 9
C20: Below bottom boundary | F20: Top thermal boundary (T0) | G20: =B10 -> 0 | H20: °C | K20: C32 | L20: =L18 ->  | M20: - | N20: 7
C21: Below bottom boundary | F21: Bottom thermal boundary (TB) | G21: =INDEX(B:B,MATCH(9.99999999999999E+307,B:B)) ->  | H21: °C | K21: C41 | L21: =L19*EXP(D2*(G10+G11+G12)*((1/L12)-(1/L13))) ->  | M21: - | N21: 9
C22: Below bottom boundary | K22: C42 | L22: =L20 ->  | M22: - | N22: 7
C23: Below bottom boundary | F23: Check message below to ensure congruence between
C24: Below bottom boundary | F24: layer thickness values and total adjusted depth of domain
C25: Below bottom boundary | F25: =IF(G14=SUM(G10:G13),"Layer thickness values and entered depths match","Combined layer thicknesses do not match entered depths!") -> Layer thickness values and entered depths match
C26: Below bottom boundary
C27: Below bottom boundary
C28: Below bottom boundary
C29: Below bottom boundary
C30: Below bottom boundary
C31: Below bottom boundary
C32: Below bottom boundary
C33: Below bottom boundary
C34: Below bottom boundary
C35: Below bottom boundary
C36: Below bottom boundary
C37: Below bottom boundary
C38: Below bottom boundary
C39: Below bottom boundary
C40: Below bottom boundary
C41: Below bottom boundary
C42: Below bottom boundary
C43: Below bottom boundary
C44: Below bottom boundary
C45: Below bottom boundary
C46: Below bottom boundary
C47: Below bottom boundary
C48: Below bottom boundary
C49: Below bottom boundary
C50: Below bottom boundary
C51: Below bottom boundary
C52: Below bottom boundary
C53: Below bottom boundary
C54: Below bottom boundary
C55: Below bottom boundary
C56: Below bottom boundary
C57: Below bottom boundary
C58: Below bottom boundary
C59: Below bottom boundary
C60: Below bottom boundary
C61: Below bottom boundary
C62: Below bottom boundary
C63: Below bottom boundary
C64: Below bottom boundary
C65: Below bottom boundary
C66: Below bottom boundary
C67: Below bottom boundary
C68: Below bottom boundary
C69: Below bottom boundary
C70: Below bottom boundary
C71: Below bottom boundary
C72: Below bottom boundary
C73: Below bottom boundary
C74: Below bottom boundary
C75: Below bottom boundary | D75: =IF(C75="Below bottom boundary",#N/A,IF(C75<$G$10,$L$15*EXP($D$2*C75/$L$10)+$L$16,IF(C75<($G$10+$G$11),$L$17*EXP($D$2*C75/$L$11)+$L$18,IF(C75<($G$10+$G$11+$G$12),$L$19*EXP($D$2*C75/$L$12)+$L$20,$L$21*EXP($D$2*C75/$L$13)+$L$22)))) ->  | E75: =IF(ISERROR((D75-B75)^2),"",(D75-B75)^2) -> 
C76: =IF(A76-$A$10>0,A76-$A$10,"Below bottom boundary") -> Below bottom boundary
C77: Below bottom boundary
C78: Below bottom boundary
C79: Below bottom boundary
C80: Below bottom boundary
C81: Below bottom boundary
C82: Below bottom boundary
C83: Below bottom boundary
C84: Below bottom boundary
C85: Below bottom boundary
C86: Below bottom boundary
C87: Below bottom boundary
C88: Below bottom boundary
C89: Below bottom boundary
C90: Below bottom boundary
C91: Below bottom boundary
C92: Below bottom boundary
C93: Below bottom boundary
C94: Below bottom boundary
C95: Below bottom boundary
C96: Below bottom boundary
C97: Below bottom boundary
C98: Below bottom boundary
C99: Below bottom boundary
C100: Below bottom boundary
C101: Below bottom boundary
C102: Below bottom boundary
C103: Below bottom boundary
C104: Below bottom boundary
C105: Below bottom boundary
C106: Below bottom boundary
C107: Below bottom boundary
C108: Below bottom boundary
C109: Below bottom boundary
C110: Below bottom boundary
C111: Below bottom boundary
C112: Below bottom boundary
C113: Below bottom boundary
C114: Below bottom boundary
C115: Below bottom boundary
C116: Below bottom boundary
C117: Below bottom boundary
C118: Below bottom boundary
C119: Below bottom boundary
C120: Below bottom boundary
C121: Below bottom boundary
C122: Below bottom boundary
C123: Below bottom boundary
C124: Below bottom boundary
C125: Below bottom boundary
C126: Below bottom boundary
C127: Below bottom boundary
C128: Below bottom boundary
C129: Below bottom boundary
C130: Below bottom boundary
C131: Below bottom boundary
C132: Below bottom boundary
C133: Below bottom boundary
C134: Below bottom boundary
C135: Below bottom boundary
C136: Below bottom boundary
C137: Below bottom boundary
C138: Below bottom boundary
C139: Below bottom boundary | D139: =IF(C139="Below bottom boundary",#N/A,IF(C139<$G$10,$L$15*EXP($D$2*C139/$L$10)+$L$16,IF(C139<($G$10+$G$11),$L$17*EXP($D$2*C139/$L$11)+$L$18,IF(C139<($G$10+$G$11+$G$12),$L$19*EXP($D$2*C139/$L$12)+$L$20,$L$21*EXP($D$2*C139/$L$13)+$L$22)))) ->  | E139: =IF(ISERROR((D139-B139)^2),"",(D139-B139)^2) -> 
C140: =IF(A140-$A$10>0,A140-$A$10,"Below bottom boundary") -> Below bottom boundary
C141: Below bottom boundary
C142: Below bottom boundary
C143: Below bottom boundary
C144: Below bottom boundary
C145: Below bottom boundary
C146: Below bottom boundary
C147: Below bottom boundary
C148: Below bottom boundary
C149: Below bottom boundary
C150: Below bottom boundary
C151: Below bottom boundary
C152: Below bottom boundary
C153: Below bottom boundary
C154: Below bottom boundary
C155: Below bottom boundary
C156: Below bottom boundary
C157: Below bottom boundary
C158: Below bottom boundary
C159: Below bottom boundary
C160: Below bottom boundary
C161: Below bottom boundary
C162: Below bottom boundary
C163: Below bottom boundary
C164: Below bottom boundary
C165: Below bottom boundary
C166: Below bottom boundary
C167: Below bottom boundary
C168: Below bottom boundary
C169: Below bottom boundary
C170: Below bottom boundary
C171: Below bottom boundary
C172: Below bottom boundary
C173: Below bottom boundary
C174: Below bottom boundary
C175: Below bottom boundary
C176: Below bottom boundary
C177: Below bottom boundary
C178: Below bottom boundary
C179: Below bottom boundary
C180: Below bottom boundary
C181: Below bottom boundary
C182: Below bottom boundary
C183: Below bottom boundary
C184: Below bottom boundary
C185: Below bottom boundary
C186: Below bottom boundary
C187: Below bottom boundary
C188: Below bottom boundary
C189: Below bottom boundary
C190: Below bottom boundary
C191: Below bottom boundary
C192: Below bottom boundary
C193: Below bottom boundary
C194: Below bottom boundary
C195: Below bottom boundary
C196: Below bottom boundary
C197: Below bottom boundary
C198: Below bottom boundary
C199: Below bottom boundary
C200: Below bottom boundary
C201: Below bottom boundary
... 1808 more rows

Sheet Plot-4 layer
